bitfinex-derivatives/quotes_SOLF0:USTF0_20251002
["timestamp","ask_amount","ask_price","bid_price","bid_amount"]
[1759432222702,7.1,233.18,233.1,3.8582]
[1759432224003,7.1,233.18,233.12,3.8579]
[1759432224402,7.64,233.23,233.14,8.1076]
[1759432225006,7.64,233.23,233.16,3.8573]
[1759432225200,0.75,233.25,233.14,11.29589227]
[1759432225403,7.64,233.24,233.11,108.52]
[1759432225601,7.64,233.24,233.1,4.25]
[1759432226008,7.64,233.24,233.14,4.25]
[1759432227006,7.64,233.24,233.17,3.8571]
[1759432227407,11.496,233.24,233.14,4.25]
[1759432228113,7.64,233.24,233.14,4.25]
[1759432229104,7.64,233.24,233.09,4.25]
[1759432229609,7.64,233.24,233.03,4.70909323]
[1759432229610,7.64,233.2,233.04,4.25]
[1759432229810,7.64,233.15,233.07,3.8588]
[1759432230204,7.64,233.15,233.04,64.283]
[1759432230409,7.64,233.15,233.05,60.0311]
[1759432231314,7.64,233.23,233.06,4.25]
[1759432231912,7.64,233.23,233.05,60.0311]
[1759432231913,7.64,233.23,233.13,60.01]
[1759432232314,0.75,233.25,233.18,3.8569]
[1759432232812,0.75,233.25,233.16,60.0018]
[1759432233013,0.75,233.25,233.15,4.25]
[1759432233319,0.75,233.25,233.16,60.0016]
[1759432233718,0.75,233.25,233.17,4.25]
[1759432234013,0.75,233.25,233.22,3.8562]
[1759432234321,0.75,233.25,233.23,4.25]
[1759432234616,0.75,233.25,233.19,3.8567]
[1759432234818,0.75,233.25,233.18,105.42]
[1759432235018,8.36,233.25,233.13,11.29589227]
[1759432235317,8.36,233.25,233.15,64.2552]
[1759432235511,8.36,233.25,233.17,60.0]
[1759432235715,0.75,233.25,233.2,3.8565]
[1759432235910,0.75,233.25,233.21,4.25]
[1759432236314,0.75,233.25,233.2,3.8565]
[1759432236511,0.75,233.25,233.21,4.25]
[1759432237014,0.75,233.25,233.17,3.8571]
[1759432237220,0.75,233.25,233.17,168.6403]
[1759432237416,0.75,233.25,233.17,168.6203]
[1759432237720,0.75,233.25,233.21,4.25]
[1759432238420,0.75,233.25,233.2,4.25]
[1759432238614,0.75,233.25,233.2,59.991]
[1759432238815,0.75,233.25,233.17,4.25]
[1759432239019,0.75,233.25,233.18,59.9976]
[1759432239416,0.75,233.25,233.21,8.1064]
[1759432239915,0.75,233.25,233.21,3.8564]
[1759432240118,0.75,233.25,233.18,3.8569]
[1759432240526,0.75,233.25,233.17,3.8571]
[1759432240822,0.75,233.25,233.16,4.25]
[1759432241020,0.75,233.25,233.21,3.8563]
[1759432241220,0.75,233.25,233.21,8.1063]
[1759432241619,0.75,233.25,233.22,8.1062]
[1759432241819,0.75,233.25,233.22,3.8562]
[1759432242023,0.75,233.25,233.24,3.856]
[1759432242226,0.75,233.25,233.24,8.106]
[1759432243417,0.75,233.25,233.23,108.46]
[1759432243614,0.75,233.25,233.22,4.25]
[1759432243915,0.75,233.25,233.19,59.9937]
[1759432244122,0.75,233.25,233.24,4.25]
[1759432245022,7.61,233.38,233.27,3.8554]
[1759432245323,7.61,233.38,233.28,4.25]
[1759432245529,7.61,233.45,233.33,4.25]
[1759432246114,7.61,233.45,233.35,3.854]
[1759432246314,7.61,233.45,233.33,4.25]
[1759432246515,7.61,233.45,233.31,3.8547]
[1759432246716,7.61,233.45,233.32,64.2097]
[1759432247115,7.61,233.45,233.37,3.8538]
[1759432247419,7.61,233.45,233.32,108.47]
[1759432247722,7.61,233.45,233.32,8.1046]
[1759432247915,7.61,233.45,233.32,116.8646]
[1759432248116,7.61,233.45,233.35,4.25]
[1759432248326,7.61,233.52,233.38,3.8535]
[1759432248724,7.61,233.5,233.35,4.25]
[1759432248924,3.8519,233.49,233.35,4.25]
[1759432249423,7.61,233.5,233.39,3.8534]
[1759432249618,20.26667596,233.5,233.39,3.8534]
[1759432249929,7.61,233.5,233.35,64.2032]
[1759432250122,7.61,233.5,233.4,3.8532]
[1759432250316,7.61,233.5,233.35,64.2032]
[1759432250317,7.61,233.5,233.36,59.9497]
[1759432250721,7.61,233.5,233.38,4.25]
[1759432251426,13.11316456,233.51,233.46,64.1755]
[1759432251621,13.11316456,233.51,233.47,59.922]
[1759432251932,7.61,233.6,233.48,4.25]
[1759432252226,9.68082719,233.85,233.48,4.25]
[1759432252227,34.56270567,233.73,233.54,59.9052]
[1759432252431,7.61,233.72,233.55,4.25]
[1759432252724,7.61,233.71,233.55,4.25]
[1759432252927,7.61,233.71,233.58,4.25]
[1759432254023,7.61,233.65,233.52,4.25]
[1759432254421,3.8495,233.64,233.52,4.25]
[1759432254829,59.8797,233.64,233.52,4.25]
[1759432255228,3.8498,233.62,233.52,4.25]
[1759432256431,7.61,233.74,233.59,4.25]
[1759432256733,3.8483,233.71,233.59,4.25]
[1759432256930,3.8483,233.71,233.51,59.912]
[1759432256931,7.61,233.7,233.54,4.19571625]
[1759432257131,59.8721,233.67,233.53,4.25]
[1759432257324,59.872,233.67,233.53,4.25]
[1759432257529,59.8755,233.66,233.53,4.25]
[1759432257823,7.61,233.65,233.53,4.25]
[1759432258222,3.8496,233.63,233.53,4.25]
[1759432260131,67.4975,233.61,233.44,4.25]
[1759432260332,7.61,233.61,233.45,59.928]
[1759432260534,7.61,233.61,233.48,3.8519]
[1759432260938,59.8695,233.68,233.49,4.25]
[1759432261138,11.4589,233.67,233.52,3.8512]
[1759432261334,11.4589,233.67,233.52,4.25]
[1759432262632,3.8493,233.65,233.52,4.25]
[1759432263342,7.21,233.63,233.47,29.62]
[1759432263545,7.21,233.63,233.47,4.22]
[1759432263939,7.21,233.6,233.47,4.22]
[1759432264138,59.9005,233.56,233.41,4.22]
[1759432264339,7.21,233.55,233.41,4.22]
[1759432264535,59.9067,233.54,233.41,4.22]
[1759432264842,7.21,233.53,233.41,4.22]
[1759432265148,7.21,233.53,233.42,3.8529]
[1759432265347,7.21,233.53,233.41,4.22]
[1759432265547,7.21,233.53,233.42,3.853]
[1759432265749,7.21,233.59,233.42,3.853]
[1759432266042,7.21,233.59,233.44,4.22]
[1759432266244,7.21,233.59,233.48,8.0719]
[1759432267237,7.21,233.59,233.48,4.22]
[1759432268445,11.0602,233.59,233.48,4.22]
[1759432269247,3.8506,233.57,233.48,4.22]
[1759432269647,7.21,233.59,233.48,4.22]
[1759432269848,7.21,233.59,233.48,8.0719]
[1759432270047,7.21,233.59,233.48,4.22]
[1759432271145,7.21,233.64,233.49,59.918]
[1759432271438,7.21,233.64,233.48,4.22]
[1759432272146,59.8826,233.63,233.48,4.22]
[1759432272446,7.21,233.6,233.39,59.943]
[1759432272645,7.21,233.56,233.4,4.22]
[1759432273150,3.8512,233.53,233.4,4.22]
[1759432273340,59.9081,233.53,233.4,4.22]
[1759432273544,7.21,233.52,233.35,64.1732]
[1759432273949,7.21,233.52,233.39,4.22]
[1759432274549,7.21,233.52,233.44,3.8526]
[1759432274749,7.21,233.52,233.39,4.22]
[1759432275346,7.21,233.52,233.43,3.8527]
[1759432276246,7.21,233.52,233.45,3.8524]
[1759432277444,7.21,233.52,233.39,4.22]
[1759432278051,11.0614,233.52,233.41,3.8531]
[1759432278352,7.21,233.52,233.39,4.22]
[1759432279352,7.21,233.52,233.39,8.0734]
[1759432280258,7.21,233.52,233.39,64.1623]
[1759432280759,7.21,233.52,233.43,3.8528]
[1759432281153,7.21,233.52,233.41,59.9383]
[1759432281554,7.21,233.52,233.45,3.8525]
[1759432281755,3.8508,233.56,233.43,4.22]
[1759432282053,7.21,233.57,233.47,4.22]
[1759432282356,7.21,233.65,233.49,59.918]
[1759432283156,3.8498,233.62,233.47,4.22]
[1759432283359,7.21,233.65,233.49,59.9181]
[1759432283556,7.21,233.65,233.51,59.9124]
[1759432284459,7.21,233.65,233.53,3.851]
[1759432285857,7.21,233.65,233.5,8.0716]
[1759432286162,7.2,233.56,233.45,4.23]
[1759432286563,59.8969,233.58,233.4,315.83]
[1759432286763,3.8514,233.52,233.4,315.83]
[1759432287064,7.2,233.55,233.41,59.9382]
[1759432287261,7.2,233.55,233.43,59.9333]
[1759432287566,7.2,233.55,233.44,4.23]
[1759432287765,4.19571625,233.65,233.44,4.23]
[1759432287766,7.2,233.63,233.45,59.9283]
[1759432288161,3.8504,233.58,233.45,59.9283]
[1759432288462,46.61704571,233.64,233.45,110.12]
[1759432289366,3.85,233.6,233.49,3.8518]
[1759432289565,3.85,233.6,233.46,59.9239]
[1759432289765,4.19571625,233.65,233.48,67.52]
[1759432289966,59.8701,233.68,233.48,67.52]
[1759432290162,3.8499,233.61,233.53,3.8512]
[1759432290361,3.8499,233.61,233.48,67.52]
[1759432290667,7.2,233.63,233.48,7.6]
[1759432291662,3.8497,233.62,233.48,7.6]
[1759432292263,3.8497,233.62,233.52,3.8513]
[1759432293367,3.85,233.6,233.52,3.8513]
[1759432293563,3.85,233.6,233.5,3.8517]
[1759432293766,7.2,233.63,233.5,3.8517]
[1759432293968,7.2,233.63,233.48,7.6]
[1759432293969,3.85,233.61,233.48,7.6]
[1759432294569,3.8502,233.59,233.48,7.6]
[1759432294767,7.03,233.58,233.48,7.6]
[1759432295065,7.03,233.57,233.43,7.04]
[1759432295962,7.03,233.57,233.38,7.04]
[1759432295963,7.03,233.51,233.38,7.04]
[1759432296169,7.03,233.51,233.39,59.9432]
[1759432296364,3.8517,233.5,233.4,3.8532]
[1759432296556,3.8517,233.5,233.38,7.04]
[1759432296759,7.03,233.51,233.38,7.04]
[1759432297171,10.8817,233.51,233.43,3.8528]
[1759432298371,3.8518,233.5,233.4,3.8532]
[1759432298570,3.8518,233.5,233.38,112.68]
[1759432298773,7.03,233.51,233.38,7.04]
[1759432299073,7.03,233.51,233.42,3.853]
[1759432300575,10.8817,233.51,233.42,3.853]
[1759432300976,7.03,233.51,233.39,3.8534]
[1759432301177,7.03,233.51,233.38,7.04]
[1759432301874,7.03,233.51,233.43,3.8527]
[1759432302276,7.03,233.51,233.43,5.5997461]
[1759432302782,8.7770461,233.51,233.4,5.6002461]
[1759432303180,3.8517,233.5,233.41,3.853]
[1759432303867,3.852,233.48,233.4,1.7470461]
[1759432304273,7.03,233.47,233.4,1.7470461]
[1759432305075,7.03,233.47,233.4,5.6003461]
[1759432306481,10.8828,233.44,233.33,1.7470461]
[1759432306981,7.03,233.44,233.35,3.854]
[1759432307182,7.03,233.44,233.36,1.7470461]
[1759432307581,7.03,233.44,233.36,3.8538]
[1759432307789,7.03,233.44,233.36,1.7470461]
[1759432307976,7.03,233.44,233.31,7.04]
[1759432308280,7.03,233.44,233.35,5.6011461]
[1759432308485,3.853,233.43,233.33,1.7470461]
[1759432308684,7.03,233.44,233.33,3.8543]
[1759432308986,3.8535,233.39,233.32,1.7470461]
[1759432309482,3.8532,233.41,233.32,1.7470461]
[1759432310284,7.03,233.44,233.35,1.7470461]
[1759432310478,7.03,233.44,233.31,67.003]
[1759432310479,7.03,233.44,233.38,1.7470461]
[1759432311483,7.03,233.44,233.37,3.8538]
[1759432311678,20.17106136,233.47,233.32,7.04]
[1759432311882,1.7470461,233.43,233.32,8.7870461]
[1759432312683,3.853,233.42,233.35,3.8541]
[1759432313287,3.8533,233.4,233.32,10.8946]
[1759432313484,7.03,233.41,233.32,1.7470461]
[1759432313689,7.03,233.41,233.36,3.8539]
[1759432313883,3.8523,233.46,233.38,1.7470461]
[1759432313884,7.03,233.46,233.38,1.7470461]
[1759432314286,7.03,233.46,233.34,9.77101576]
[1759432314685,7.03,233.46,233.35,59.9537]
[1759432315487,7.03,233.46,233.37,3.8537]
[1759432316392,3.8525,233.45,233.37,3.8537]
[1759432316687,7.03,233.46,233.35,3.8541]
[1759432317587,3.8528,233.44,233.35,3.8541]
[1759432317785,7.03,233.46,233.32,3.8545]
[1759432317983,2.73101576,233.44,233.32,3.8545]
[1759432318187,7.03,233.43,233.32,3.8545]
[1759432318387,3.8535,233.4,233.32,3.8545]
[1759432319692,3.853,233.42,233.32,7.04]
[1759432320389,7.03,233.43,233.32,7.04]
[1759432321395,7.03,233.43,233.37,3.8538]
[1759432321591,12.74669324,233.47,233.32,7.04]
[1759432321796,7.34,233.48,233.32,7.04]
[1759432322397,3.8526,233.45,233.38,3.8535]
[1759432323198,3.8529,233.43,233.36,3.854]
[1759432325099,7.34,233.5,233.4,3.8532]
[1759432325304,20.31763305,233.5,233.36,10.18101576]
[1759432325694,7.34,233.46,233.36,7.45]
[1759432326701,3.8526,233.45,233.36,11.304]
[1759432326907,3.8526,233.45,233.36,7.45]
[1759432327407,3.8526,233.45,233.38,3.8535]
[1759432327706,7.34,233.46,233.36,7.45]
[1759432327906,3.852,233.49,233.41,3.853]
[1759432328910,3.852,233.49,233.42,3.8529]
[1759432329408,3.8521,233.48,233.42,3.8529]
[1759432330108,3.8523,233.47,233.39,11.3034]
[1759432330506,3.8523,233.47,233.39,7.45]
[1759432330901,7.34,233.54,233.43,7.45]
[1759432331512,20.42706413,233.54,233.43,7.45]
[1759432332606,3.8513,233.53,233.46,3.8522]
[1759432332808,20.42706413,233.54,233.43,7.45]
[1759432333007,0.02808715,233.51,233.43,7.45]
[1759432334613,7.34,233.5,233.36,59.9505]
[1759432334806,0.02808715,233.51,233.42,7.45]
[1759432335116,0.02808715,233.51,233.45,7.45]
[1759432335303,3.8505,233.57,233.45,7.45]
[1759432335711,0.02906105,233.5,233.49,3.8517]
[1759432335918,0.02906105,233.5,233.49,11.3017]
[1759432336414,3.8505,233.57,233.5,3.8515]
[1759432336911,0.02799705,233.52,233.51,7.45]
[1759432337418,315.4697,233.63,233.51,7.47699273]
[1759432337719,7.34,233.64,233.52,2.73101576]
[1759432338517,20.09942988,233.64,233.52,2.73101576]
[1759432338915,7.34,233.69,233.58,3.8503]
[1759432339116,7.34,233.69,233.57,7.45]
[1759432339516,3.8493,233.65,233.57,7.45]
[1759432340214,59.867,233.69,233.61,0.02728109]
[1759432340413,7.34,233.68,233.61,0.02728109]
[1759432340813,11.1897,233.62,233.61,0.02728109]
[1759432342212,3.8497,233.62,233.61,0.02728109]
[1759432342415,11.1897,233.62,233.61,0.02728109]
[1759432343619,11.1894,233.65,233.61,0.02728109]
[1759432343816,7.34,233.65,233.61,0.02728109]
[1759432344018,19.85793529,233.7,233.61,0.02728109]
[1759432344217,7.13,233.65,233.61,0.02728109]
[1759432345218,3.8494,233.64,233.61,0.02728109]
[1759432345917,7.13,233.68,233.61,0.02728109]
[1759432346323,3.8489,233.67,233.61,0.02728109]
[1759432347813,7.13,233.68,233.61,0.02728109]
[1759432348622,13.09830351,233.7,233.61,0.02728109]
[1759432348821,7.13,233.72,233.61,0.02728109]
[1759432349020,3.8483,233.71,233.62,3.8495]
[1759432349419,3.8483,233.71,233.61,0.02728109]
[1759432350023,3.8483,233.71,233.62,3.8497]
[1759432350415,7.13,233.72,233.62,3.8497]
[1759432350817,19.69652609,233.72,233.61,0.02728109]
[1759432351312,7.13,233.71,233.61,0.02728109]
[1759432351514,7.35,233.69,233.61,0.02728109]
[1759432352520,3.8492,233.65,233.61,0.02728109]
[1759432352723,7.35,233.64,233.61,0.02728109]
[1759432353327,3.8489,233.67,233.61,0.02728109]
[1759432353624,7.35,233.68,233.61,0.02728109]
[1759432354627,3.849,233.67,233.61,0.02728109]
[1759432355225,3.8492,233.66,233.61,0.02728109]
[1759432355427,7.35,233.65,233.61,0.02728109]
[1759432357124,3.8487,233.68,233.61,0.02728109]
[1759432357330,7.35,233.69,233.62,3.8496]
[1759432357523,12.56652609,233.72,233.62,10.33101576]
[1759432357723,7.35,233.74,233.62,10.33101576]
[1759432357921,3.848,233.73,233.64,3.8492]
[1759432358326,3.848,233.73,233.62,10.33101576]
[1759432359033,3.848,233.73,233.66,3.849]
[1759432359228,16.57943165,233.73,233.66,3.849]
[1759432359428,3.848,233.73,233.66,3.849]
[1759432359925,3.848,233.73,233.65,0.02795567]
[1759432361032,3.848,233.73,233.65,3.87695567]
[1759432361235,311.68,233.77,233.66,10.33101576]
[1759432361432,324.71828411,233.77,233.66,10.33101576]
[1759432362027,324.71828411,233.77,233.65,0.02795567]
[1759432362028,11.1981,233.72,233.65,0.02795567]
[1759432362329,7.35,233.72,233.65,0.02795567]
[1759432363127,11.1985,233.7,233.65,0.02795567]
[1759432363334,11.1985,233.7,233.65,7.62795567]
[1759432363931,59.8605,233.72,233.65,0.02795567]
[1759432364132,59.8605,233.72,233.55,7.6]
[1759432364133,10.08101576,233.69,233.55,7.6]
[1759432365138,10.08101576,233.69,233.58,3.8503]
[1759432365139,3.8491,233.66,233.58,3.8503]
[1759432365338,10.08101576,233.69,233.55,7.6]
[1759432365832,3.8495,233.64,233.56,3.8505]
[1759432366343,3.8491,233.66,233.58,3.8503]
[1759432366838,7.35,233.69,233.55,7.6]
[1759432367039,59.8698,233.68,233.55,7.6]
[1759432367235,67.2229,233.67,233.55,7.6]
[1759432367537,67.2229,233.67,233.52,2.73101576]
[1759432367737,11.1998,233.62,233.54,3.851]
[1759432368435,7.35,233.62,233.55,3.8507]
[1759432368936,7.35,233.62,233.52,6.58221576]
[1759432369141,7.35,233.62,233.52,3.8512]
[1759432370341,3.8502,233.59,233.51,7.6]
[1759432371041,3.8499,233.61,233.51,11.4515]
[1759432371345,3.8499,233.61,233.51,7.6]
[1759432371542,3.8502,233.59,233.51,7.6]
[1759432372138,3.8505,233.57,233.5,4.42612071]
[1759432372636,7.35,233.59,233.5,4.42612071]
[1759432372832,7.35,233.55,233.5,4.42612071]
[1759432373038,7.35,233.6,233.5,4.42612071]
[1759432374439,11.2008,233.56,233.5,4.42612071]
[1759432374637,11.2008,233.56,233.47,10.33101576]
[1759432374638,7.35,233.56,233.47,7.6]
[1759432376344,3.8509,233.55,233.45,1.74619791]
[1759432376545,7.35,233.56,233.48,1.74619791]
[1759432377347,1.74619791,233.59,233.51,1.74619791]
[1759432377546,11.2001,233.6,233.51,1.74619791]
[1759432378448,3.8504,233.58,233.51,1.74619791]
[1759432378643,7.35,233.57,233.51,1.74619791]
[1759432379147,9.09619791,233.61,233.51,1.74619791]
[1759432379343,1.74619791,233.6,233.51,1.74619791]
[1759432380347,7.35,233.61,233.52,7.6]
[1759432380543,7.35,233.65,233.57,1.74619791]
[1759432381041,7.35,233.65,233.56,3.8505]
[1759432381249,7.35,233.65,233.57,1.74619791]
[1759432382650,7.35,233.65,233.57,5.59659791]
[1759432382955,11.258,233.73,233.64,1.74619791]
[1759432383150,7.41,233.73,233.67,3.8487]
[1759432383452,7.41,233.73,233.62,1.74619791]
[1759432383646,7.41,233.73,233.64,3.8494]
[1759432383854,7.41,233.73,233.65,1.74619791]
[1759432384052,7.26062039,233.98,233.59,168.4514]
[1759432384053,13.04068208,233.77,233.69,1.74619791]
[1759432384254,7.41,233.78,233.66,7.47]
[1759432384856,7.41,233.78,233.66,9.21619791]
[1759432385044,7.41,233.78,233.63,7.47]
[1759432385355,7.41,233.78,233.66,1.74619791]
[1759432385552,3.8477,233.74,233.64,7.47]
[1759432385757,3.8477,233.74,233.62,1.74619791]
[1759432385758,7.41,233.72,233.62,1.74619791]
[1759432385944,7.41,233.72,233.65,1.74619791]
[1759432386143,7.41,233.72,233.62,7.47]
[1759432386653,7.41,233.72,233.64,1.74619791]
[1759432387354,7.41,233.72,233.62,9.21619791]
[1759432387554,1.74619791,233.71,233.56,72.76]
[1759432387750,7.41,233.72,233.57,7.47]
[1759432387952,1.74619791,233.71,233.6,1.74619791]
[1759432388155,1.74619791,233.71,233.57,7.47]
[1759432388354,1.74619791,233.71,233.61,1.74619791]
[1759432389154,7.41,233.72,233.61,7.47]
[1759432389354,7.41,233.72,233.62,1.74619791]
[1759432389855,7.41,233.72,233.65,1.74619791]
[1759432390260,7.41,233.72,233.63,1.74619791]
[1759432391252,7.41,233.72,233.61,7.47]
[1759432391450,7.41,233.72,233.64,1.74619791]
[1759432392157,7.41,233.72,233.62,3.8497]
[1759432392359,7.41,233.72,233.64,3.8493]
[1759432392655,7.41,233.72,233.65,1.74619791]
[1759432393860,7.41,233.72,233.66,1.74619791]
[1759432394753,11.2575,233.76,233.66,1.74619791]
[1759432395159,7.41,233.76,233.64,11.3193]
[1759432395459,7.41,233.76,233.67,1.74619791]
[1759432396159,7.41,233.76,233.64,7.47]
[1759432396350,7.41,233.74,233.64,9.21619791]
[1759432396660,9.15619791,233.74,233.64,7.47]
[1759432396854,7.41,233.74,233.65,1.74619791]
[1759432397049,3.8481,233.72,233.64,7.47]
[1759432397253,7.41,233.71,233.62,1.74619791]
[1759432397448,7.41,233.71,233.65,1.74619791]
[1759432397653,3.8475,233.76,233.67,1.74619791]
[1759432397856,7.41,233.75,233.67,1.74619791]
[1759432398357,3.8477,233.74,233.67,1.74619791]
[1759432399257,7.41,233.75,233.66,5.59519791]
[1759432399658,7.41,233.75,233.69,1.74619791]
[1759432400754,7.41,233.75,233.64,7.47]
[1759432400955,13.00379791,233.75,233.65,3.8491]
[1759432401461,11.2576,233.75,233.64,9.21619791]
[1759432401664,1.74619791,233.74,233.64,9.21619791]
[1759432402161,1.74619791,233.74,233.64,7.47]
[1759432402362,7.41,233.75,233.65,1.74619791]
[1759432403567,7.41,233.75,233.68,3.8487]
[1759432403864,7.41,233.75,233.65,1.74619791]
[1759432404262,7.41,233.75,233.64,7.47]
[1759432404460,7.41,233.75,233.64,9.21619791]
[1759432405454,7.41,233.75,233.68,3.8486]
[1759432405659,7.41,233.75,233.68,11.4186]
[1759432406154,12.56052874,233.78,233.68,11.4186]
[1759432406353,3.8474,233.77,233.7,3.8484]
[1759432406561,7.37,233.76,233.69,1.74619791]
[1759432406961,3.8476,233.75,233.69,1.74619791]
[1759432407162,3.8476,233.75,233.67,3.8487]
[1759432407760,3.8479,233.74,233.66,1.74619791]
[1759432407960,7.37,233.73,233.66,1.74619791]
[1759432408266,7.37,233.73,233.65,5.59539791]
[1759432408462,7.37,233.73,233.66,3.8489]
[1759432409060,7.37,233.73,233.67,3.8487]
[1759432409457,7.37,233.73,233.65,1.74619791]
[1759432409656,7.37,233.73,233.64,7.57]
[1759432409864,7.37,233.73,233.68,1.74619791]
[1759432410263,7.37,233.74,233.65,1.74619791]
[1759432410972,7.37,233.68,233.58,7.57]
[1759432411462,72.98048287,233.78,233.63,1.74619791]
[1759432411663,9.32619791,233.73,233.63,9.22619791]
[1759432412068,3.8481,233.72,233.63,13.07559791]
[1759432412463,7.58,233.73,233.63,9.22619791]
[1759432412668,7.58,233.73,233.63,7.48]
[1759432413168,59.8473,233.77,233.59,3.8501]
[1759432413169,7.58,233.69,233.59,3.8501]
[1759432413369,7.58,233.69,233.6,1.74619791]
[1759432413965,7.58,233.69,233.61,3.8499]
[1759432414164,7.58,233.69,233.62,1.74619791]
[1759432414563,7.58,233.69,233.59,7.48]
[1759432414564,7.58,233.69,233.6,3.8499]
[1759432414768,7.58,233.69,233.61,1.74619791]
[1759432416174,7.58,233.67,233.57,5.59659791]
[1759432416674,11.4289,233.67,233.57,5.59659791]
[1759432416872,7.58,233.67,233.59,11.3301]
[1759432417067,7.58,233.72,233.63,1.74619791]
[1759432418669,7.58,233.77,233.69,1.74619791]
[1759432419066,7.58,233.77,233.7,3.8483]
[1759432419267,7.58,233.77,233.69,1.74619791]
[1759432419970,7.58,233.77,233.65,1.74619791]
[1759432420174,7.58,233.73,233.65,3.8491]
[1759432420378,7.58,233.73,233.64,1.74619791]
[1759432420680,7.58,233.73,233.7,3.8484]
[1759432421071,7.58,233.79,233.7,3.8484]
[1759432421271,7.58,233.79,233.7,5.59459791]
[1759432421471,11.427,233.79,233.7,3.8484]
[1759432421675,20.3158573,233.79,233.67,3.8487]
[1759432421876,1.74619791,233.74,233.63,1.74619791]
[1759432422073,5.59409791,233.74,233.63,1.74619791]
[1759432422279,5.59409791,233.74,233.64,11.67]
[1759432422782,11.4281,233.72,233.64,15.5192]
[1759432423176,1.74619791,233.71,233.64,11.67]
[1759432423477,7.58,233.72,233.64,11.67]
[1759432424578,7.58,233.72,233.65,3.8492]
[1759432424775,7.58,233.72,233.64,11.67]
[1759432424974,1.74619791,233.75,233.67,11.3289]
[1759432425180,11.4273,233.77,233.67,11.3289]
[1759432425481,11.4273,233.77,233.67,7.48]
[1759432426084,11.4273,233.77,233.69,3.8485]
[1759432427088,7.58,233.77,233.69,3.8485]
[1759432428589,7.58,233.77,233.71,3.8482]
[1759432428784,2.96290565,233.76,233.71,3.8482]
[1759432428984,2.96290565,233.75,233.68,5.59479791]
[1759432429184,2.96290565,233.74,233.68,1.74619791]
[1759432429489,7.58,233.77,233.68,1.74619791]
[1759432429787,2.9627484,233.76,233.67,13.07489791]
[1759432429990,7.58,233.74,233.64,11.67]
[1759432430185,2.9627484,233.73,233.64,13.41619791]
[1759432430385,2.9627484,233.72,233.64,13.41619791]
[1759432430691,7.58,233.74,233.64,13.41619791]
[1759432430889,1.74619791,233.71,233.64,11.67]
[1759432431088,2.96305244,233.7,233.64,11.67]
[1759432431388,7.58,233.72,233.65,3.8492]
[1759432431689,7.58,233.72,233.64,11.67]
[1759432431690,2.96304938,233.71,233.64,11.67]
[1759432431888,1.74619791,233.75,233.64,11.67]
[1759432432191,2.9630051,233.74,233.68,3.8486]
[1759432432389,9.32619791,233.76,233.69,7.48]
[1759432432691,2.99197066,233.75,233.69,7.48]
[1759432432888,2.99197066,233.74,233.72,1.74619791]
[1759432433185,2.99197066,233.74,233.67,59.8714]